fUSD/lending_fUSD_20250506
["ID","MTS","AMOUNT","RATE_DAILY","PERIOD"]
[360033044,1746497450005,-2052.5,0.00019999,2]
[360033045,1746497450014,-2052.5,0.00019999,2]
[360033046,1746497450023,-450.0,0.00019999,2]
[360033047,1746497450032,-2052.5709,0.00019999,2]
[360033048,1746497450041,-16259.40049952,0.0002,2]
[360033049,1746497450052,-102552.07176755,0.0002,2]
[360033050,1746497450063,-1116.14335463,0.0002,2]
[360033051,1746497450074,-7917.64319396,0.0002,2]
[360033052,1746497450085,-1319.22692,0.0002,2]
[360033053,1746497450131,-2397.10568078,0.0002,2]
[360033054,1746497450146,-5410.27679043,0.0002,2]
[360033055,1746497450157,-13173.48982096,0.0002,2]
[360033056,1746497450169,-897.40698998,0.0002,2]
[360033060,1746497528005,363.263248,7.945e-05,2]
[360033061,1746497536315,23900.0,0.00019425,2]
[360033063,1746497538998,500.0,0.00029589,30]
[360033064,1746497579822,500.0,0.00029589,30]
[360033065,1746497580060,500.0,0.00029863,30]
[360033066,1746497607352,218.89945319,0.0002845,30]
[360033067,1746497745717,190.08,0.00019177,2]
[360033068,1746497822570,487.19,0.00017098,2]
[360033069,1746497822789,487.19,0.00019362,2]
[360033070,1746497850686,-165.22,0.00019549,2]
[360033071,1746497888323,666.497236,7.945e-05,2]
[360033072,1746497922404,200.0,0.00018931,2]
[360033073,1746497943537,511.059707,0.0003013,120]
[360033074,1746498008542,503.47,0.00029,30]
[360033075,1746498021518,600.000001,0.000195,2]
[360033077,1746498071064,1106.19,0.0001892,2]
[360033078,1746498187606,500.0,0.00029589,30]
[360033079,1746498187864,500.0,0.00029863,30]
[360033080,1746498198128,-172.49811775,0.00019552,2]
[360033081,1746498203673,-200.0,0.00019552,2]
[360033082,1746498208021,-300.0,0.00019552,2]
[360033083,1746498213499,-193.12828262,0.00019552,2]
[360033084,1746498217685,-153.0641577,0.00019552,2]
[360033085,1746498245699,1052.98622,0.0003,30]
[360033086,1746498251415,262.852763,0.00019178,2]
[360033087,1746498251436,892.487237,0.00019178,2]
[360033089,1746498272436,1271.024574,0.00019454,2]
[360033090,1746498360283,1836.488189,0.00019454,2]
[360033091,1746498360306,4000.0,0.00019454,2]
[360033092,1746498360329,1643.02526018,0.00019454,2]
[360033093,1746498381342,484.49452143,0.000209,30]
[360033098,1746498452382,559.66,0.00018917,2]
[360033099,1746498518117,151.02711182,0.0003,120]
[360033101,1746498525368,1000.0,0.00018913,2]
[360033102,1746498533976,797.31473982,0.00018913,2]
[360033103,1746498534000,1474.22526018,0.00018913,2]
[360033106,1746498597613,-448.30825507,0.00019551,2]
[360033107,1746498604415,-212.70704317,0.00019551,2]
[360033108,1746498609206,-87.29295683,0.00019551,2]
[360033109,1746498609233,-140.94672532,0.00019551,2]
[360033126,1746498631562,-1059.05327468,0.00019551,2]
[360033128,1746498631572,-300.0,0.00019551,2]
[360033130,1746498631581,-250.0,0.00019551,2]
[360033132,1746498631590,-200.0,0.00019552,2]
[360033134,1746498631600,-7506.57447165,0.00019552,2]
[360033135,1746498636731,-494.7767235,0.00019552,2]
[360033136,1746498636743,-18491.64641107,0.00019552,2]
[360033137,1746498636891,-9490.01410252,0.00019552,2]
[360033162,1746498637538,-2886.11746084,0.00019552,2]
[360033165,1746498637550,-30723.12508899,0.00019552,2]
[360033166,1746498637718,-207.4,0.00019589,2]
[360033167,1746498637727,-200.0,0.000196,2]
[360033168,1746498637737,-350.41188854,0.000197,2]
[360033169,1746498637749,-391.55153082,0.0001975,2]
[360033170,1746498637760,-156.62664009,0.00019772,2]
[360033171,1746498637770,-150.0,0.00019791,2]
[360033172,1746498637780,-183.450889,0.00019852,2]
[360033173,1746498637789,-398.90053832,0.00019884,2]
[360033174,1746498637798,-197.10894301,0.00019886,2]
[360033175,1746498637807,-152.32546086,0.00019886,2]
[360033176,1746498637816,-151.0,0.00019886,2]
[360033177,1746498637826,-150.0,0.00019894,2]
[360033178,1746498637835,-223.99888801,0.00019898,2]
[360033179,1746498637844,-462.72206301,0.00019898,2]
[360033180,1746498637854,-1341.8262,0.00019898,2]
[360033181,1746498637863,-462.72206292,0.00019898,2]
[360033182,1746498637872,-223.99888794,0.00019898,2]
[360033183,1746498637881,-462.72206292,0.00019898,2]
[360033184,1746498637890,-223.99888794,0.00019899,2]
[360033185,1746498637899,-462.72206292,0.00019899,2]
[360033186,1746498637908,-223.99888794,0.00019899,2]
[360033187,1746498637919,-462.72206292,0.00019899,2]
[360033188,1746498637928,-500.0,0.00019899,2]
[360033189,1746498637938,-500.0,0.00019899,2]
[360033190,1746498637947,-500.0,0.00019899,2]
[360033191,1746498637956,-500.0,0.00019899,2]
[360033192,1746498637966,-500.0,0.00019899,2]
[360033193,1746498637976,-259.13154972,0.00019899,2]
[360033194,1746498637985,-500.0,0.00019899,2]
[360033195,1746498637995,-500.0,0.00019899,2]
[360033196,1746498638004,-500.0,0.00019899,2]
[360033197,1746498638013,-500.0,0.00019899,2]
[360033198,1746498638023,-500.0,0.00019899,2]
[360033199,1746498638033,-500.0,0.00019899,2]
[360033200,1746498638043,-500.0,0.00019899,2]
[360033201,1746498638052,-633.30731361,0.00019899,2]
[360033202,1746498638062,-500.0,0.00019899,2]
[360033203,1746498638071,-500.0,0.00019899,2]
[360033205,1746498638081,-500.0,0.00019899,2]
[360033207,1746498638091,-500.0,0.00019899,2]
[360033208,1746498638100,-457.42020833,0.00019899,2]
[360033209,1746498638109,-500.0,0.00019899,2]
[360033210,1746498638118,-604.86417752,0.00019899,2]
[360033212,1746498638127,-500.0,0.00019899,2]
[360033213,1746498638136,-500.0,0.00019899,2]
[360033215,1746498638145,-500.0,0.00019899,2]
[360033217,1746498638154,-500.0,0.00019899,2]
[360033218,1746498638163,-217.84733726,0.00019899,2]
[360033219,1746498638173,-500.0,0.00019899,2]
[360033222,1746498638183,-500.0,0.00019899,2]
[360033223,1746498638192,-213.78784614,0.00019899,2]
[360033224,1746498638202,-500.0,0.00019899,2]
[360033225,1746498638211,-500.0,0.00019899,2]
[360033226,1746498638221,-213.78784614,0.00019899,2]
[360033227,1746498638231,-500.0,0.00019899,2]
[360033228,1746498638240,-500.0,0.00019899,2]
[360033229,1746498638251,-500.0,0.00019899,2]
[360033230,1746498638260,-500.0,0.00019899,2]
[360033231,1746498638269,-417.46755939,0.00019899,2]
[360033233,1746498638278,-500.0,0.00019899,2]
[360033234,1746498638288,-462.72206292,0.00019899,2]
[360033235,1746498638297,-223.99888794,0.00019899,2]
[360033236,1746498638308,-462.72206292,0.00019899,2]
[360033237,1746498638317,-223.99888794,0.00019899,2]
[360033238,1746498638327,-462.72206292,0.000199,2]
[360033239,1746498638336,-223.99888794,0.000199,2]
[360033240,1746498638347,-462.72206292,0.000199,2]
[360033241,1746498638357,-1568.7970389,0.000199,2]
[360033242,1746498638366,-307.4823,0.000199,2]
[360033243,1746498638379,-1568.7970389,0.000199,2]
[360033244,1746498638388,-4937.38265054,0.000199,2]
[360033245,1746498638398,-223.99888794,0.000199,2]
[360033246,1746498638408,-462.72206292,0.000199,2]
[360033247,1746498638418,-276.8986049,0.000199,2]
[360033248,1746498638428,-150.0,0.00019918,7]
[360033249,1746498638438,-940.846,0.00019955,2]
[360033250,1746498638448,-5933.0,0.00019955,2]
[360033251,1746498638459,-500.0,0.00019973,2]
[360033252,1746498638469,-40072.34923602,0.00019986,2]
[360033253,1746498638509,-329.28526711,0.00019986,2]
[360033254,1746498638524,-854.94123515,0.00019986,2]
[360033255,1746498638540,-1115.59738295,0.00019986,2]
[360033256,1746498638549,-2718.40687314,0.00019986,2]
[360033258,1746498639819,-2421.15000765,0.00019986,2]
[360033259,1746498639831,-2505.02333111,0.00019986,2]
[360033260,1746498639840,-14165.5427984,0.00019986,2]
[360033261,1746498639850,-254.4042606,0.00019986,2]
[360033262,1746498639860,-23531.3572085,0.00019986,2]
[360033263,1746498639869,-950.16,0.00019988,2]
[360033264,1746498639879,-26608.51336543,0.0001999,2]
[360033265,1746498639888,-576.665,0.00019997,2]
[360033266,1746498639897,-450.0,0.00019997,2]
[360033267,1746498639907,-540.88923011,0.00019997,2]
[360033268,1746498639916,-453.33934767,0.00019997,2]
[360033269,1746498639926,-450.0,0.00019997,2]
[360033270,1746498639935,-450.0,0.00019997,2]
[360033271,1746498639944,-450.0,0.00019997,2]
[360033272,1746498639953,-270.37228676,0.00019997,2]
[360033273,1746498639963,-450.0,0.00019997,2]
[360033274,1746498639972,-450.0,0.00019997,2]
[360033275,1746498639982,-487.38705143,0.00019997,2]
[360033276,1746498639991,-450.0,0.00019997,2]
[360033277,1746498640000,-152.9375377,0.00019997,2]
[360033278,1746498640010,-450.0,0.00019997,2]
[360033279,1746498640019,-450.0,0.00019997,2]
[360033280,1746498640027,-450.0,0.00019997,2]
[360033281,1746498640038,-181.53754976,0.00019997,2]
[360033282,1746498640048,-450.0,0.00019997,2]
[360033283,1746498640057,-342.22300381,0.00019997,2]
[360033284,1746498640067,-450.0,0.00019997,2]
[360033285,1746498640078,-450.0,0.00019997,2]
[360033286,1746498640088,-450.0,0.00019997,2]
[360033287,1746498640098,-194.93993763,0.00019997,2]
[360033288,1746498640107,-450.0,0.00019997,2]
[360033289,1746498640116,-450.0,0.00019997,2]
[360033290,1746498640126,-450.0,0.00019997,2]
[360033291,1746498640135,-450.0,0.00019997,2]
[360033292,1746498640144,-450.0,0.00019997,2]
[360033293,1746498640154,-450.0,0.00019997,2]
[360033294,1746498640165,-450.0,0.00019997,2]
[360033295,1746498640174,-450.0,0.00019997,2]
[360033296,1746498640183,-450.0,0.00019997,2]
[360033297,1746498640194,-450.0,0.00019997,2]
[360033298,1746498640204,-571.69461174,0.00019997,2]
[360033299,1746498640215,-450.0,0.00019997,2]
[360033300,1746498640225,-450.0,0.00019997,2]
[360033301,1746498640236,-450.0,0.00019997,2]
[360033302,1746498640245,-450.0,0.00019997,2]
[360033303,1746498640255,-450.0,0.00019997,2]
[360033304,1746498640264,-450.0,0.00019997,2]
[360033305,1746498640273,-450.0,0.00019997,2]
[360033306,1746498640282,-450.0,0.00019997,2]
[360033307,1746498640292,-450.0,0.00019997,2]
[360033308,1746498640301,-450.0,0.00019997,2]
[360033309,1746498640310,-450.0,0.00019997,2]
[360033310,1746498640320,-450.0,0.00019997,2]
[360033311,1746498640329,-530.80198337,0.00019997,2]
[360033312,1746498640339,-450.0,0.00019997,2]
[360033313,1746498640349,-151.56077242,0.00019997,2]
[360033314,1746498640358,-450.0,0.00019997,2]
[360033315,1746498640368,-450.0,0.00019997,2]
[360033316,1746498640380,-450.0,0.00019997,2]
[360033317,1746498640390,-7463.56,0.00019997,2]
[360033318,1746498640399,-466.95553793,0.00019997,2]
[360033319,1746498640409,-502.28204968,0.00019997,2]
[360033320,1746498640419,-450.0,0.00019997,2]
[360033321,1746498640428,-187.31996448,0.00019997,2]
[360033322,1746498640438,-182.66235686,0.00019997,2]
[360033323,1746498640447,-500.0,0.00019997,2]
[360033324,1746498640457,-614.2663153,0.00019997,2]
[360033326,1746498640467,-175.207637,0.00019997,2]
[360033328,1746498640477,-500.0,0.00019997,2]
[360033330,1746498640487,-440.13973799,0.00019997,2]
[360033332,1746498640496,-500.0,0.00019997,2]
[360033334,1746498640506,-450.0,0.00019997,2]
[360033336,1746498640516,-450.0,0.00019997,2]
[360033338,1746498640525,-183.450889,0.00019998,2]
[360033340,1746498640534,-44969.03275566,0.00019998,2]
[360033341,1746498640544,-450.0,0.00019998,2]
[360033342,1746498640553,-450.0,0.00019998,2]
[360033343,1746498640562,-579.45804674,0.00019998,2]
[360033344,1746498640572,-450.0,0.00019998,2]
[360033346,1746498640581,-450.0,0.00019998,2]
[360033348,1746498640591,-450.0,0.00019998,2]
[360033350,1746498640600,-452.21100289,0.00019998,2]
[360033352,1746498640609,-450.0,0.00019998,2]
[360033354,1746498640619,-450.0,0.00019998,2]
[360033355,1746498640627,-450.0,0.00019998,2]
[360033356,1746498640636,-450.0,0.00019998,2]
[360033357,1746498640646,-519.86930951,0.00019998,2]
[360033358,1746498640655,-503.64430949,0.00019998,2]
[360033359,1746498640664,-450.0,0.00019998,2]
[360033360,1746498640673,-486.52973085,0.00019998,2]
[360033361,1746498640682,-450.0,0.00019998,2]
[360033362,1746498640691,-323.01539512,0.00019998,2]
[360033363,1746498640700,-557.91948827,0.00019998,2]
[360033364,1746498640709,-200.0,0.00019998,2]
[360033365,1746498640718,-527.57491467,0.00019998,2]
[360033366,1746498640727,-450.0,0.00019998,2]
[360033367,1746498640736,-500.67529618,0.00019998,2]
[360033368,1746498640746,-450.0,0.00019998,2]
[360033369,1746498640757,-450.0,0.00019998,2]
[360033370,1746498640766,-485.77,0.00019998,2]
[360033371,1746498640775,-450.0,0.00019998,2]
[360033372,1746498640784,-211.43768865,0.00019998,2]
[360033373,1746498640793,-450.0,0.00019998,2]
[360033374,1746498640802,-519.58739999,0.00019998,2]
[360033375,1746498640811,-450.0,0.00019998,2]
[360033376,1746498640820,-450.0,0.00019998,2]
[360033377,1746498640829,-450.0,0.00019998,2]
[360033378,1746498640838,-450.0,0.00019998,2]
[360033379,1746498640847,-254.86,0.00019998,2]
[360033380,1746498640856,-450.0,0.00019998,2]
[360033381,1746498640866,-450.0,0.00019998,2]
[360033382,1746498640875,-450.0,0.00019998,2]
[360033383,1746498640883,-450.0,0.00019998,2]
[360033384,1746498640892,-450.0,0.00019998,2]
[360033385,1746498640901,-472.18404111,0.00019998,2]
[360033386,1746498640910,-450.0,0.00019998,2]
[360033387,1746498640920,-450.0,0.00019998,2]
[360033388,1746498640930,-450.0,0.00019998,2]
[360033389,1746498640939,-450.0,0.00019998,2]
[360033390,1746498640950,-543.12013927,0.00019998,2]
[360033391,1746498640960,-450.0,0.00019998,2]
[360033392,1746498640971,-522.29329378,0.00019998,2]
[360033393,1746498640980,-524.09,0.00019998,2]
[360033394,1746498640990,-450.0,0.00019998,2]
[360033395,1746498640999,-450.0,0.00019998,2]
[360033396,1746498641008,-450.0,0.00019998,2]
[360033397,1746498641018,-450.0,0.00019998,2]
[360033398,1746498641029,-450.0,0.00019998,2]
[360033399,1746498641038,-548.11431461,0.00019998,2]
[360033400,1746498641047,-450.0,0.00019998,2]
[360033401,1746498641057,-464.35,0.00019998,2]
[360033402,1746498641066,-550.4898764,0.00019998,2]
[360033403,1746498641075,-450.0,0.00019998,2]
[360033404,1746498641084,-290.02145302,0.00019998,2]
[360033405,1746498641094,-529.25628653,0.00019998,2]
[360033406,1746498641103,-450.0,0.00019998,2]
[360033407,1746498641112,-445.90349874,0.00019998,2]
[360033408,1746498641121,-450.0,0.00019998,2]
[360033409,1746498641130,-450.0,0.00019998,2]
[360033410,1746498641139,-388.44666048,0.00019998,2]
[360033411,1746498641147,-532.75276435,0.00019998,2]
[360033412,1746498641157,-450.0,0.00019998,2]
[360033413,1746498641167,-583.61,0.00019998,2]
[360033414,1746498641176,-459.73,0.00019998,2]
[360033415,1746498641185,-450.0,0.00019998,2]
[360033416,1746498641194,-450.0,0.00019998,2]
[360033417,1746498641203,-450.0,0.00019998,2]
[360033418,1746498641213,-450.0,0.00019998,2]
[360033419,1746498641223,-152.08,0.00019998,2]
[360033420,1746498641233,-450.0,0.00019998,2]
[360033421,1746498641243,-450.0,0.00019998,2]
[360033422,1746498641252,-402.28,0.00019998,2]
[360033423,1746498641261,-485.87,0.00019998,2]
[360033424,1746498641270,-450.0,0.00019998,2]
[360033425,1746498641280,-450.0,0.00019998,2]
[360033426,1746498641291,-459.33486415,0.00019998,2]
[360033427,1746498641299,-307.31660146,0.00019998,2]
[360033428,1746498641308,-456.63069503,0.00019998,2]
[360033429,1746498641319,-450.0,0.00019998,2]
[360033430,1746498641328,-450.0,0.00019998,2]
[360033431,1746498641337,-450.0,0.00019998,2]
[360033432,1746498641349,-450.0,0.00019998,2]
[360033433,1746498641358,-450.0,0.00019998,2]
[360033434,1746498641367,-573.53603021,0.00019998,2]
[360033435,1746498641379,-407.50164798,0.00019998,2]
[360033436,1746498641388,-450.0,0.00019998,2]
[360033437,1746498641397,-559.72453057,0.00019998,2]
[360033438,1746498641407,-588.98563995,0.00019998,2]
[360033439,1746498641416,-287.09065287,0.00019998,2]
[360033440,1746498641426,-456.37100599,0.00019998,2]
[360033441,1746498641435,-450.0,0.00019998,2]
[360033442,1746498641444,-450.0,0.00019998,2]
[360033443,1746498641453,-450.0,0.00019998,2]
[360033444,1746498641463,-450.0,0.00019998,2]
[360033445,1746498641472,-450.0,0.00019998,2]
[360033446,1746498641482,-474.45,0.00019998,2]
[360033447,1746498641492,-450.0,0.00019998,2]
[360033448,1746498641501,-463.82865237,0.00019998,2]
[360033449,1746498641510,-323.12287038,0.00019998,2]
[360033450,1746498641520,-450.0,0.00019998,2]
[360033451,1746498641529,-502.36275249,0.00019998,2]
[360033452,1746498641538,-520.44792012,0.00019998,2]
[360033453,1746498641547,-450.0,0.00019998,2]
[360033454,1746498641556,-450.0,0.00019998,2]
[360033455,1746498641565,-450.0,0.00019998,2]
[360033456,1746498641575,-280.56003724,0.00019998,2]
[360033457,1746498641584,-461.02728098,0.00019998,2]
[360033458,1746498641593,-450.0,0.00019998,2]
[360033459,1746498641603,-482.07389186,0.00019998,2]
[360033460,1746498641612,-453.1521665,0.00019998,2]
[360033461,1746498641621,-482.56261821,0.00019998,2]
[360033462,1746498641630,-500.15,0.00019998,2]
[360033463,1746498641640,-478.14,0.00019998,2]
[360033464,1746498641650,-450.0,0.00019998,2]
[360033465,1746498641659,-450.0,0.00019998,2]
[360033466,1746498641667,-450.0,0.00019998,2]
[360033467,1746498641677,-450.0,0.00019998,2]
[360033468,1746498641686,-450.0,0.00019998,2]
[360033469,1746498641695,-450.0,0.00019998,2]
[360033470,1746498641704,-450.0,0.00019998,2]
[360033471,1746498641713,-450.0,0.00019998,2]
[360033472,1746498641723,-450.24309134,0.00019998,2]
[360033473,1746498641731,-450.0,0.00019998,2]
[360033474,1746498641741,-450.0,0.00019998,2]
[360033475,1746498641751,-450.0,0.00019998,2]
[360033476,1746498641760,-537.64366022,0.00019998,2]
[360033477,1746498641769,-507.30604503,0.00019998,2]
[360033478,1746498641778,-450.0,0.00019998,2]
[360033479,1746498641787,-450.0,0.00019998,2]
[360033480,1746498641796,-450.0,0.00019998,2]
[360033481,1746498641805,-3822.62,0.00019998,2]
[360033482,1746498641814,-3822.62,0.00019998,2]
[360033483,1746498641823,-425.0,0.00019998,2]
[360033484,1746498641834,-450.0,0.00019998,2]
[360033485,1746498641846,-450.0,0.00019998,2]
[360033486,1746498641856,-474.8,0.00019998,2]
[360033487,1746498641867,-450.0,0.00019998,2]
[360033488,1746498641876,-219.90919077,0.00019998,2]
[360033489,1746498641885,-459.54979096,0.00019998,2]
[360033490,1746498641895,-589.49972068,0.00019998,2]
[360033491,1746498641904,-450.0,0.00019998,2]
[360033492,1746498641913,-450.0,0.00019998,2]
[360033493,1746498641922,-450.0,0.00019998,2]
[360033494,1746498641932,-450.0,0.00019998,2]
[360033495,1746498641943,-450.0,0.00019998,2]
[360033496,1746498641953,-368.6613271,0.00019998,2]
[360033497,1746498641962,-450.0,0.00019998,2]
[360033498,1746498642093,-450.0,0.00019998,2]
[360033499,1746498642102,-450.0,0.00019998,2]
[360033500,1746498642111,-450.0,0.00019998,2]
[360033501,1746498642121,-450.0,0.00019998,2]
[360033502,1746498642130,-450.0,0.00019998,2]
[360033503,1746498642140,-450.0,0.00019998,2]
[360033504,1746498642150,-454.48,0.00019998,2]
[360033505,1746498642160,-454.48,0.00019998,2]
[360033506,1746498642169,-450.0,0.00019998,2]
[360033507,1746498642178,-308.58829565,0.00019998,2]
[360033508,1746498642187,-569.50365886,0.00019998,2]
[360033509,1746498642196,-194.90395162,0.00019998,2]
[360033510,1746498642205,-340.18555388,0.00019998,2]
[360033511,1746498642214,-450.0,0.00019998,2]
[360033512,1746498642223,-450.0,0.00019998,2]
[360033513,1746498642232,-450.0,0.00019998,2]
[360033514,1746498642243,-450.0,0.00019998,2]
[360033515,1746498642252,-450.0,0.00019998,2]
[360033516,1746498642261,-313.95,0.00019998,2]
[360033517,1746498642270,-351.47631248,0.00019998,2]
[360033518,1746498642279,-450.0,0.00019998,2]
[360033519,1746498642289,-450.0,0.00019998,2]
[360033520,1746498642297,-450.0,0.00019998,2]
[360033521,1746498642306,-237.11061039,0.00019998,2]
[360033522,1746498642315,-283.17312793,0.00019998,2]
[360033523,1746498642324,-450.0,0.00019998,2]
[360033524,1746498642333,-450.0,0.00019998,2]
[360033525,1746498642343,-450.0,0.00019998,2]
[360033526,1746498642352,-450.0,0.00019998,2]
[360033527,1746498642361,-450.0,0.00019998,2]
[360033528,1746498642370,-450.0,0.00019998,2]
[360033529,1746498642383,-450.0,0.00019998,2]
[360033531,1746498642392,-450.0,0.00019998,2]
[360033532,1746498642401,-450.0,0.00019998,2]
[360033533,1746498642410,-548.10088172,0.00019998,2]
[360033534,1746498642419,-450.0,0.00019998,2]
[360033535,1746498642429,-450.0,0.00019998,2]
[360033536,1746498642438,-450.0,0.00019998,2]
[360033537,1746498642449,-450.0,0.00019998,2]
[360033538,1746498642459,-450.0,0.00019998,2]
[360033539,1746498642469,-503.34329056,0.00019998,2]
[360033540,1746498642479,-451.81090501,0.00019998,2]
[360033541,1746498642489,-246.96321116,0.00019998,2]
[360033542,1746498642498,-450.0,0.00019998,2]
[360033543,1746498642507,-450.0,0.00019998,2]
[360033544,1746498642516,-450.0,0.00019998,2]
[360033545,1746498642525,-570.49596228,0.00019998,2]
[360033546,1746498642535,-253.21977317,0.00019998,2]
[360033548,1746498642544,-450.0,0.00019998,2]
[360033549,1746498642553,-162.52189223,0.00019998,2]
[360033550,1746498642562,-450.0,0.00019998,2]
[360033552,1746498642572,-489.96195882,0.00019998,2]
[360033554,1746498642581,-450.0,0.00019998,2]
[360033555,1746498642590,-450.0,0.00019998,2]
[360033557,1746498642600,-450.0,0.00019998,2]
[360033558,1746498642609,-450.0,0.00019998,2]
[360033559,1746498642618,-450.0,0.00019998,2]
[360033561,1746498642627,-527.69362067,0.00019998,2]
[360033562,1746498642636,-450.0,0.00019998,2]
[360033563,1746498642645,-450.0,0.00019998,2]
[360033565,1746498642654,-458.38836522,0.00019998,2]
[360033567,1746498642663,-464.20271004,0.00019998,2]
[360033569,1746498642672,-450.0,0.00019998,2]
[360033571,1746498642681,-498.05788944,0.00019998,2]
[360033573,1746498642690,-476.19772673,0.00019998,2]
[360033575,1746498642699,-450.0,0.00019998,2]
[360033577,1746498642708,-450.0,0.00019998,2]
[360033579,1746498642717,-450.0,0.00019998,2]
[360033581,1746498642727,-220.90000001,0.00019998,2]
[360033582,1746498642738,-450.0,0.00019998,2]
[360033583,1746498642746,-532.0523107,0.00019998,2]
[360033584,1746498642756,-198.94826499,0.00019998,2]
[360033585,1746498642765,-502.8446364,0.00019998,2]
[360033586,1746498642774,-457.77384415,0.00019998,2]
[360033587,1746498642784,-504.71891104,0.00019998,2]
[360033588,1746498642793,-559.19311802,0.00019998,2]
[360033589,1746498642803,-450.0,0.00019998,2]
[360033590,1746498642812,-450.0,0.00019998,2]
[360033591,1746498642822,-570.3,0.00019998,2]
[360033592,1746498642831,-463.19609399,0.00019998,2]
[360033593,1746498642840,-450.0,0.00019998,2]
[360033594,1746498642850,-450.0,0.00019998,2]
[360033595,1746498642858,-450.0,0.00019998,2]
[360033596,1746498642868,-450.0,0.00019998,2]
[360033597,1746498642877,-450.0,0.00019998,2]
[360033598,1746498642887,-580.63144996,0.00019998,2]
[360033599,1746498642896,-450.0,0.00019998,2]
[360033600,1746498642905,-450.0,0.00019998,2]
[360033601,1746498642914,-450.0,0.00019998,2]
[360033602,1746498642923,-450.0,0.00019998,2]
[360033603,1746498642933,-450.0,0.00019998,2]
[360033604,1746498642942,-450.0,0.00019998,2]
[360033605,1746498642951,-450.0,0.00019998,2]
[360033606,1746498642960,-553.17600041,0.00019998,2]
[360033607,1746498642970,-450.0,0.00019998,2]
[360033608,1746498642980,-552.54051789,0.00019998,2]
[360033609,1746498642991,-450.0,0.00019998,2]
[360033610,1746498643000,-522.72477206,0.00019998,2]
[360033611,1746498643009,-450.0,0.00019998,2]
[360033612,1746498643019,-450.0,0.00019998,2]
[360033613,1746498643028,-560.54333892,0.00019998,2]
[360033614,1746498643037,-450.0,0.00019998,2]
[360033615,1746498643046,-471.88253887,0.00019998,2]
[360033617,1746498643055,-450.0,0.00019998,2]
[360033619,1746498643065,-455.66112291,0.00019998,2]
[360033621,1746498643074,-450.0,0.00019998,2]
[360033622,1746498643083,-450.0,0.00019998,2]
[360033623,1746498643093,-450.0,0.00019998,2]
[360033624,1746498643102,-450.0,0.00019998,2]
[360033626,1746498643111,-474.92020839,0.00019998,2]
[360033628,1746498643120,-183.26485706,0.00019998,2]
[360033630,1746498643129,-515.24663202,0.00019998,2]
[360033632,1746498643139,-450.0,0.00019998,2]
[360033634,1746498643148,-450.0,0.00019998,2]
[360033635,1746498643158,-450.0,0.00019998,2]
[360033637,1746498643167,-450.0,0.00019998,2]
[360033639,1746498643176,-471.9871439,0.00019998,2]
[360033640,1746498643185,-450.0,0.00019998,2]
[360033641,1746498643194,-450.0,0.00019998,2]
[360033642,1746498643203,-450.0,0.00019998,2]
[360033643,1746498643212,-451.35622373,0.00019998,2]
[360033644,1746498643221,-313.33201111,0.00019998,2]
[360033645,1746498643230,-9871.98,0.00019998,2]
[360033646,1746498643241,-9871.98,0.00019998,2]
[360033647,1746498643250,-450.0,0.00019998,2]
[360033648,1746498643259,-450.0,0.00019998,2]
[360033649,1746498643269,-451.91817862,0.00019998,2]